bitfinex/quotes_BTCUSD_20241202
["timestamp","ask_amount","ask_price","bid_price","bid_amount"]
[1733161109634,0.08538149,95402.0,95397.0,0.001]
[1733161109749,0.13158149,95402.0,95397.0,0.001]
[1733161109977,0.00958149,95401.0,95398.0,0.001]
[1733161110216,0.00958149,95400.0,95399.0,0.10284521]
[1733161111642,0.01758149,95400.0,95399.0,0.10384521]
[1733161112096,0.01858149,95400.0,95399.0,0.10384521]
[1733161112352,0.01858149,95400.0,95399.0,0.11422973]
[1733161112570,0.01858149,95400.0,95399.0,0.10384521]
[1733161112810,0.02658149,95400.0,95399.0,0.10484521]
[1733161113276,0.01758149,95400.0,95399.0,0.10384521]
[1733161114000,0.008,95400.0,95399.0,0.10477248]
[1733161114719,0.017,95400.0,95399.0,0.10577248]
[1733161114944,0.017,95400.0,95399.0,0.10484521]
[1733161115184,0.14508149,95400.0,95399.0,0.001]
[1733161115404,0.15408149,95400.0,95399.0,0.002]
[1733161115626,0.13408149,95400.0,95399.0,0.002]
[1733161115883,0.1736137,95400.0,95399.0,0.002]
[1733161116124,0.26572757,95400.0,95399.0,0.002]
[1733161116370,0.26572757,95400.0,95383.0,6.8e-05]
[1733161116371,0.03453221,95387.0,95383.0,6.8e-05]
[1733161116601,0.00958149,95386.0,95383.0,6.8e-05]
[1733161116819,0.0095656,95385.0,95383.0,6.8e-05]
[1733161117044,0.0095656,95384.0,95383.0,6.8e-05]
[1733161117722,0.12689781,95384.0,95383.0,6.8e-05]
[1733161117960,0.12689781,95384.0,95383.0,0.001068]
[1733161118441,0.12689781,95384.0,95383.0,6.8e-05]
[1733161118671,0.18159781,95384.0,95383.0,6.8e-05]
[1733161118895,0.36531196,95384.0,95383.0,6.8e-05]
[1733161119124,0.17559781,95384.0,95383.0,0.001068]
[1733161119345,0.17559781,95384.0,95350.0,0.00092894]
[1733161119346,0.03453221,95362.0,95350.0,0.00092894]
[1733161119573,0.0890656,95361.0,95351.0,0.10284521]
[1733161119806,0.0890656,95361.0,95349.0,0.20183523]
[1733161119807,0.03453221,95359.0,95350.0,0.10284521]
[1733161120037,0.0095656,95358.0,95350.0,0.10284521]
[1733161120259,0.0095656,95358.0,95350.0,0.10377519]
[1733161120482,0.0095656,95357.0,95350.0,0.10377519]
[1733161120715,0.0095656,95356.0,95350.0,0.10377519]
[1733161120937,0.0095656,95355.0,95350.0,0.10377519]
[1733161121202,0.0095656,95354.0,95350.0,0.10377519]
[1733161121429,0.0095656,95353.0,95350.0,0.10284521]
[1733161121665,0.0095656,95352.0,95350.0,0.10377522]
[1733161121902,0.009,95357.0,95350.0,0.10477522]
[1733161122145,0.009,95357.0,95350.0,0.10477521]
[1733161122372,0.03470868,95358.0,95350.0,0.10377521]
[1733161122598,0.009,95354.0,95350.0,0.10377521]
[1733161123049,0.03470868,95358.0,95350.0,0.10377521]
[1733161123295,0.009,95357.0,95350.0,0.10377521]
[1733161123780,0.009,95357.0,95351.0,0.1037752]
[1733161124039,0.009,95354.0,95351.0,0.1037752]
[1733161125096,0.018,95354.0,95351.0,0.10284521]
[1733161125328,0.009,95354.0,95351.0,0.10284521]
[1733161125569,0.00017647,95358.0,95352.0,0.00092977]
[1733161125821,0.009,95357.0,95353.0,0.10284521]
[1733161126037,0.009,95354.0,95353.0,0.10284521]
[1733161126275,0.009,95354.0,95349.0,0.2009055]
[1733161126511,0.009,95354.0,95339.0,0.2]
[1733161126512,0.209775,95340.0,95339.0,0.2]
[1733161126760,0.62275242,95340.0,95339.0,0.2]
[1733161127023,0.6533125,95340.0,95339.0,0.2]
[1733161127253,0.6533125,95340.0,95320.0,0.2]
[1733161127254,0.48953221,95334.0,95320.0,0.2]
[1733161127496,0.98047742,95334.0,95320.0,0.2]
[1733161127734,0.98047742,95334.0,95333.0,99.78038986]
[1733161127735,1.07856564,95334.0,95333.0,99.78038986]
[1733161128230,1.07856564,95334.0,95333.0,99.65228986]
[1733161128470,1.3076882,95334.0,95333.0,99.65228986]
[1733161128720,1.08756564,95334.0,95333.0,99.65228986]
[1733161129231,1.07856564,95334.0,95333.0,99.65228986]
[1733161129473,0.87856564,95334.0,95333.0,99.65228986]
[1733161129705,0.89656564,95334.0,95333.0,99.65228986]
[1733161129942,0.77356564,95334.0,95333.0,99.65228986]
[1733161130407,0.77353645,95334.0,95333.0,99.65228986]
[1733161130642,1.03698786,95334.0,95333.0,99.46278986]
[1733161130882,1.14782276,95334.0,95333.0,99.46278986]
[1733161131118,0.91905408,95334.0,95333.0,99.46278986]
[1733161131602,1.13864193,95334.0,95333.0,99.46278986]
[1733161131837,0.91905408,95334.0,95333.0,99.46278986]
[1733161132069,0.91005408,95334.0,95333.0,99.45900089]
[1733161132526,0.91905408,95334.0,95333.0,99.45900089]
[1733161132784,1.09280475,95334.0,95333.0,99.45900089]
[1733161133037,0.91905408,95334.0,95333.0,99.45900089]
[1733161133288,0.71905408,95334.0,95333.0,99.45900089]
[1733161133534,0.91905408,95334.0,95333.0,99.45900089]
[1733161133761,0.91905408,95334.0,95333.0,99.41302684]
[1733161133990,0.92854743,95334.0,95333.0,99.41302684]
[1733161134464,0.72854743,95334.0,95333.0,99.41302684]
[1733161134707,0.71298021,95334.0,95333.0,99.41302684]
[1733161134944,0.78498021,95334.0,95333.0,99.41302684]
[1733161135203,5.83885021,95334.0,95333.0,99.41302684]
[1733161135435,5.82985021,95334.0,95333.0,99.41302684]
[1733161135664,5.84628057,95334.0,95333.0,99.41302684]
[1733161135889,4.79241057,95334.0,95333.0,99.41302684]
[1733161136107,1.79287836,95334.0,95333.0,99.41302684]
[1733161136844,2.01841057,95334.0,95333.0,99.38018948]
[1733161137077,1.80187836,95334.0,95333.0,99.38018948]
[1733161137535,2.06387836,95334.0,95333.0,99.38018948]
[1733161137987,0.89441057,95334.0,95333.0,99.38018948]
[1733161138212,0.88541057,95334.0,95333.0,99.37954357]
[1733161138447,1.08541057,95334.0,95333.0,99.37954357]
[1733161138676,1.07798021,95334.0,95333.0,99.37954357]
[1733161139179,1.06898021,95334.0,95333.0,99.37954357]
[1733161139407,1.41898021,95334.0,95333.0,99.37954357]
[1733161139646,1.42798021,95334.0,95333.0,99.37954357]
[1733161139885,1.40998021,95334.0,95333.0,99.37954357]
[1733161140328,1.22798021,95334.0,95333.0,99.37954357]
[1733161140576,1.21898021,95334.0,95333.0,99.37954357]
[1733161140797,1.22798021,95334.0,95333.0,99.37954357]
[1733161141022,1.22798021,95334.0,95333.0,99.38040917]
[1733161141253,1.01498021,95334.0,95333.0,99.38040917]
[1733161141478,0.60742013,95334.0,95333.0,99.38040917]
[1733161141700,0.64698021,95334.0,95333.0,99.38040917]
[1733161141935,0.544135,95334.0,95333.0,99.38040917]
[1733161142157,0.93922508,95334.0,95333.0,99.38040917]
[1733161142380,0.98814583,95334.0,95333.0,99.38040917]
[1733161142599,0.61631737,95334.0,95333.0,99.35676865]
[1733161142821,0.34532495,95334.0,95333.0,99.35676865]
[1733161143091,0.31476487,95334.0,95333.0,99.35676865]
[1733161143556,5.50645967,95334.0,95333.0,99.35676865]
[1733161143780,3.18864975,95334.0,95333.0,99.35676865]
[1733161144027,3.21721911,95334.0,95333.0,99.35676865]
[1733161144281,3.33864975,95334.0,95333.0,99.35676865]
[1733161144529,3.34921914,95334.0,95333.0,99.35676865]
[1733161144772,2.43521914,95334.0,95333.0,99.35676865]
[1733161145016,2.41564975,95334.0,95333.0,99.35676865]
[1733161145522,2.40664975,95334.0,95333.0,99.29766106]
[1733161145783,2.59142965,95334.0,95333.0,99.29766106]
[1733161146012,2.60942965,95334.0,95333.0,99.29766106]
[1733161146237,2.60042965,95334.0,95333.0,99.29766106]
[1733161146492,2.60042965,95334.0,95333.0,99.29227252]
[1733161146493,2.59142965,95334.0,95333.0,99.29227252]
[1733161146739,2.56986957,95334.0,95333.0,99.25942897]
[1733161147016,2.56986957,95334.0,95333.0,99.22886889]
[1733161147017,2.5710464,95334.0,95333.0,99.22886889]
[1733161147248,2.56986957,95334.0,95333.0,99.22886889]
[1733161147492,2.56086957,95334.0,95333.0,99.22886889]
[1733161147730,3.04941876,95334.0,95333.0,95.64150581]
[1733161147952,3.04941876,95334.0,95333.0,93.04559854]
[1733161147953,2.31026212,95334.0,95333.0,93.04559854]
[1733161148179,2.28428253,95334.0,95333.0,93.01961895]
[1733161148458,7.32915253,95334.0,95333.0,93.01961895]
[1733161148710,7.32172897,95334.0,95333.0,93.01961895]
[1733161148936,7.35137539,95334.0,95333.0,93.01961895]
[1733161149156,2.27950539,95334.0,95333.0,93.01961895]
[1733161149414,2.26785897,95334.0,95333.0,93.01961895]
[1733161149636,2.42490332,95334.0,95333.0,93.01961895]
[1733161150122,2.99749112,95334.0,95333.0,93.01961895]
[1733161150350,3.03699001,95334.0,95333.0,93.01961895]
[1733161150796,3.58699001,95334.0,95333.0,93.01961895]
[1733161151236,8.64129169,95334.0,95333.0,93.01961895]
[1733161151910,8.64299369,95334.0,95333.0,93.01961895]
[1733161152196,3.85112361,95334.0,95333.0,92.20961895]
[1733161152432,3.85112361,95334.0,95333.0,86.95333849]
[1733161152679,3.85112361,95334.0,95333.0,86.45073868]
[1733161152897,3.96019765,95334.0,95333.0,86.12673868]
[1733161153147,3.96019765,95334.0,95333.0,85.96473868]
[1733161153368,3.82380786,95334.0,95333.0,85.95666906]
[1733161153588,3.96019765,95334.0,95333.0,85.95666906]
[1733161154249,3.82380786,95334.0,95333.0,85.95666906]
[1733161154508,3.96019765,95334.0,95333.0,85.95666906]
[1733161154756,3.82380786,95334.0,95333.0,85.95666906]
[1733161155001,3.96202889,95334.0,95333.0,85.95666906]
[1733161155223,3.82553906,95334.0,95333.0,85.95666906]
[1733161155474,3.82553906,95334.0,95333.0,85.89752869]
[1733161155691,4.01935236,95334.0,95333.0,85.89752869]
[1733161155913,4.04055452,95334.0,95333.0,85.88753226]
[1733161156145,3.90406469,95334.0,95333.0,85.88753226]
[1733161156356,3.90427902,95334.0,95333.0,85.88753226]
[1733161156621,5.08024202,95334.0,95333.0,85.88753226]
[1733161156835,4.98749992,95334.0,95333.0,84.98054137]
[1733161157053,4.98749992,95334.0,95333.0,81.53154137]
[1733161157276,5.04545071,95334.0,95333.0,80.55154137]
[1733161157494,3.8344926,95334.0,95333.0,80.53433115]
[1733161157712,3.8254926,95334.0,95333.0,79.8014802]
[1733161157937,3.8631564,95334.0,95333.0,79.61811543]
[1733161158188,3.8467268,95334.0,95333.0,79.57190307]
[1733161158691,4.05614833,95334.0,95333.0,79.57190307]
[1733161158935,4.06513924,95334.0,95333.0,79.57391902]
[1733161159150,3.8377268,95334.0,95333.0,79.57391902]
[1733161159369,3.8287268,95334.0,95333.0,79.57391902]
[1733161159594,2.30136871,95334.0,95333.0,79.57391902]
[1733161159849,2.27270491,95334.0,95333.0,79.57391902]
[1733161160340,2.26370491,95334.0,95333.0,79.57391902]
[1733161160585,2.26370491,95334.0,95333.0,79.34544051]
[1733161161070,2.26370491,95334.0,95333.0,79.32449051]
[1733161161283,2.26370491,95334.0,95333.0,79.29697446]
[1733161161717,2.2630589,95334.0,95333.0,79.29697446]
[1733161161985,8.96928699,95334.0,95333.0,79.29697446]
[1733161162461,8.85084437,95334.0,95333.0,79.23643656]
[1733161162682,8.03690341,95334.0,95333.0,79.23643656]
[1733161162935,8.02790341,95334.0,95333.0,79.23643656]
[1733161163141,8.27373699,95334.0,95333.0,79.23643656]
[1733161163402,7.28190341,95334.0,95333.0,79.23643656]
[1733161163658,7.50982594,95334.0,95333.0,79.23643656]
[1733161163866,9.0787669,95334.0,95333.0,79.23643656]
[1733161164083,9.26769772,95334.0,95333.0,79.23643656]
[1733161164305,8.82337658,95334.0,95333.0,79.23643656]
[1733161164725,8.82337658,95334.0,95333.0,79.23706755]
[1733161164955,8.81437658,95334.0,95333.0,79.23706755]
[1733161165395,8.83239219,95334.0,95333.0,79.17792885]
[1733161165612,4.04852219,95334.0,95333.0,79.17792885]
[1733161165835,4.14972219,95334.0,95333.0,79.17792885]
[1733161166314,4.114976,95334.0,95333.0,79.17792885]
[1733161166534,4.105976,95334.0,95333.0,79.17792885]
[1733161166747,4.105976,95334.0,95333.0,79.16150556]
[1733161166967,4.1064029,95334.0,95333.0,79.16040291]
[1733161167200,3.07592973,95334.0,95333.0,79.16040291]
[1733161167937,3.11068375,95334.0,95333.0,78.63467412]
[1733161168161,4.15015692,95334.0,95333.0,78.59016302]
[1733161168378,4.1510055,95334.0,95333.0,78.51333726]
[1733161168596,4.13457632,95334.0,95333.0,78.51333726]
[1733161168808,4.14357632,95334.0,95333.0,78.51333726]
[1733161169267,4.12557632,95334.0,95333.0,78.47137926]
[1733161169484,4.14357632,95334.0,95333.0,78.40844226]
[1733161170137,4.13268682,95334.0,95333.0,78.40844226]
[1733161170361,9.19843747,95334.0,95333.0,78.3975655]
[1733161170571,3.3798019,95334.0,95333.0,78.3975655]
[1733161170789,3.2696019,95334.0,95333.0,78.3975655]
[1733161171008,8.3244719,95334.0,95333.0,78.3975655]
[1733161171227,8.37449379,95334.0,95333.0,78.3975655]
[1733161171718,8.38192354,95334.0,95333.0,78.3975655]
[1733161171929,8.39092354,95334.0,95333.0,78.3975655]
[1733161172389,8.37292354,95334.0,95333.0,78.3975655]
[1733161172600,7.35688166,95334.0,95333.0,78.3975655]
[1733161172818,7.59141387,95334.0,95333.0,78.3975655]
[1733161173045,7.7341948,95334.0,95333.0,78.3975655]
[1733161173264,7.56282888,95334.0,95333.0,78.3975655]
[1733161173486,7.8199041,95334.0,95333.0,78.3975655]
[1733161173709,7.59120001,95334.0,95333.0,78.3975655]
[1733161174155,7.59115866,95334.0,95333.0,78.3975655]
[1733161174373,7.60345804,95334.0,95333.0,78.3975655]
[1733161174609,8.41568182,95334.0,95333.0,78.3975655]
[1733161174827,8.16885023,95334.0,95333.0,78.3975655]
[1733161175056,8.38538244,95334.0,95333.0,78.3975655]
[1733161175348,8.59486581,95334.0,95333.0,78.3975655]
[1733161175565,8.37505266,95334.0,95333.0,78.3975655]
[1733161175781,8.14052045,95334.0,95333.0,78.3975655]
[1733161175997,8.36605266,95334.0,95333.0,78.3975655]
[1733161176439,8.37505266,95334.0,95333.0,78.4742655]
[1733161177618,8.36605266,95334.0,95333.0,78.4742655]
[1733161177840,8.14961732,95334.0,95333.0,78.4742655]
[1733161178066,8.20834917,95334.0,95333.0,78.4742655]
[1733161178284,8.20678061,95334.0,95333.0,78.4742655]
[1733161178507,8.22478061,95334.0,95333.0,78.5221655]
[1733161178724,8.42478061,95334.0,95333.0,78.5221655]
[1733161178939,8.40678061,95334.0,95333.0,78.5221655]
[1733161179155,8.6904452,95334.0,95333.0,78.5221655]
[1733161179368,8.21578061,95334.0,95333.0,78.5221655]
[1733161179589,2.34243744,95334.0,95333.0,78.46304942]
[1733161179808,1.85729599,95334.0,95333.0,78.46304942]
[1733161180021,1.99464369,95334.0,95333.0,78.46304942]
[1733161180264,1.86629599,95334.0,95333.0,78.46304942]
[1733161180474,5.7831412,95334.0,95333.0,78.46304942]
[1733161180689,5.78541497,95334.0,95333.0,78.46304942]
[1733161180905,4.8444904,95334.0,95333.0,78.46304942]
[1733161181120,4.8158136,95334.0,95333.0,78.46304942]
[1733161181339,5.14782404,95334.0,95333.0,78.46304942]
[1733161181911,5.15682404,95334.0,95333.0,78.46304942]
[1733161182016,4.75966092,95334.0,95333.0,78.46304942]
[1733161182240,4.14316092,95334.0,95333.0,78.46304942]
[1733161182465,4.16116092,95334.0,95333.0,78.46304942]
[1733161182688,4.15216092,95334.0,95333.0,78.46304942]
[1733161182907,3.06416092,95334.0,95333.0,78.46304942]
[1733161183382,3.30119724,95334.0,95333.0,78.46304942]
[1733161183610,3.05513846,95334.0,95333.0,78.46304942]
[1733161183845,3.02648852,95334.0,95333.0,78.46304942]
[1733161184071,3.01738061,95334.0,95333.0,78.46304942]
[1733161184306,1.2528484,95334.0,95333.0,78.46304942]
[1733161184586,0.99165664,95334.0,95333.0,78.46304942]
[1733161184816,0.91355664,95334.0,95333.0,78.46304942]
[1733161185043,0.92255664,95334.0,95333.0,78.46304942]
[1733161185271,0.90455664,95334.0,95333.0,78.46304942]
[1733161185493,1.14248362,95334.0,95333.0,78.46304942]
[1733161185713,1.15148362,95334.0,95333.0,78.46304942]
[1733161185949,1.13348362,95334.0,95333.0,78.46304942]
[1733161186162,1.15132006,95334.0,95333.0,78.46304942]
[1733161186385,0.92255664,95334.0,95333.0,78.46304942]
[1733161186603,0.91355664,95334.0,95333.0,78.46304942]
[1733161187049,0.92255664,95334.0,95333.0,78.46304942]
[1733161187525,1.06598585,95334.0,95333.0,78.46304942]
[1733161187761,0.70492443,95334.0,95333.0,78.56588088]
[1733161187982,0.40842443,95334.0,95333.0,78.33844942]
[1733161188483,0.05033886,95334.0,95333.0,78.33844942]
[1733161188710,0.06833886,95334.0,95333.0,78.33844942]
[1733161189202,0.05033886,95334.0,95333.0,78.33844942]
[1733161189658,0.06106706,95334.0,95333.0,78.33844942]
[1733161189660,0.07006706,95334.0,95333.0,78.33844942]
[1733161189883,0.06106706,95334.0,95333.0,78.33844942]
[1733161190119,0.05206706,95334.0,95333.0,78.33844942]
[1733161190357,0.06106706,95334.0,95333.0,78.33844942]
[1733161191065,0.0607756,95334.0,95333.0,78.33844942]
[1733161191327,0.0697756,95334.0,95333.0,78.33944942]
[1733161191586,0.0607756,95334.0,95333.0,78.33944942]
[1733161191813,0.0697756,95334.0,95333.0,78.33944942]
[1733161192045,0.08881314,95334.0,95333.0,78.33944942]
[1733161192282,0.32913335,95334.0,95333.0,78.33944942]
[1733161192540,0.32913335,95334.0,95333.0,78.33844942]
[1733161192776,0.46757674,95334.0,95333.0,78.33844942]
[1733161193015,0.3393483,95334.0,95333.0,78.33581979]
[1733161193242,0.51330972,95334.0,95333.0,78.33581979]
[1733161193506,0.32013335,95334.0,95333.0,78.33581979]
[1733161194440,0.32913335,95334.0,95333.0,78.33581979]
[1733161194713,0.27908595,95334.0,95333.0,78.33581979]
[1733161195176,0.24455374,95334.0,95333.0,78.33581979]
[1733161195407,0.02976574,95334.0,95333.0,78.33581979]
[1733161195640,0.03876574,95334.0,95333.0,78.33581979]
[1733161196097,0.02976574,95334.0,95333.0,78.33581979]
[1733161196329,0.2713009,95334.0,95333.0,78.33581979]
[1733161196563,0.27908595,95334.0,95333.0,78.33581979]
[1733161197817,0.40709844,95334.0,95333.0,78.33581979]
[1733161198046,0.27908595,95334.0,95333.0,77.81042404]
[1733161198736,0.27008595,95334.0,95333.0,77.81042404]
[1733161199035,0.28810142,95334.0,95333.0,77.81042404]
[1733161199254,0.28041407,95334.0,95333.0,77.81042404]
[1733161199481,0.27910142,95334.0,95333.0,77.81042404]
[1733161199702,0.28810142,95334.0,95333.0,77.81042404]
[1733161201181,0.26904841,95334.0,95333.0,77.81042404]
[1733161201413,0.26004841,95334.0,95333.0,77.81042404]
[1733161201642,0.26904841,95334.0,95333.0,77.81042404]
[1733161201867,0.0247282,95334.0,95333.0,77.81042404]
[1733161202147,0.0017282,95334.0,95333.0,77.81042404]
[1733161202376,0.05426041,95334.0,95333.0,77.81042404]
[1733161202650,0.0107282,95334.0,95333.0,77.81042404]
[1733161202876,0.02028358,95334.0,95333.0,77.77759258]
[1733161203131,0.02928358,95334.0,95333.0,77.77759258]
[1733161203884,0.02028358,95334.0,95333.0,77.77759258]
[1733161204112,0.25,95351.0,95333.0,77.98326925]
[1733161204324,0.25,95351.0,95334.0,0.10377586]
[1733161204811,0.5298698,95352.0,95335.0,0.00093062]
[1733161205083,0.5298698,95352.0,95336.0,0.10284521]
[1733161205315,0.00017647,95358.0,95345.0,0.195]
[1733161205536,0.10532882,95378.0,95349.0,0.35146779]
[1733161205766,0.014,95378.0,95350.0,0.14929885]
[1733161205992,5.902e-05,95369.0,95355.0,0.16546779]
[1733161206287,5.902e-05,95369.0,95356.0,0.09477446]
[1733161206524,0.09132882,95389.0,95361.0,0.15646779]
[1733161206778,0.014,95398.0,95368.0,0.186]
[1733161207008,5.902e-05,95383.0,95369.0,0.13172973]
[1733161207280,0.009,95378.0,95369.0,0.13172973]
[1733161207619,5.902e-05,95383.0,95369.0,0.13172973]
[1733161207802,0.209683,95382.0,95365.0,0.15646779]
[1733161208023,5.902e-05,95383.0,95366.0,0.10284521]
[1733161208283,5.902e-05,95383.0,95370.0,0.186]
[1733161208502,0.001,95378.0,95376.0,0.186]
[1733161208726,0.001,95378.0,95377.0,0.10284521]
[1733161208941,5.902e-05,95383.0,95370.0,0.15646779]
[1733161209170,5.902e-05,95383.0,95371.0,0.10284521]
[1733161209171,0.001,95382.0,95371.0,0.10284521]
[1733161209610,5.902e-05,95383.0,95371.0,0.10284521]
[1733161210086,0.008,95378.0,95377.0,0.002]
[1733161210306,0.008,95378.0,95377.0,0.28984521]
[1733161210307,0.001,95378.0,95377.0,0.28984521]
[1733161210537,0.001,95378.0,95377.0,0.656007]
[1733161210760,0.25,95408.0,95388.0,0.15646779]
[1733161211004,0.25,95408.0,95377.0,0.19384119]
[1733161211005,0.01573,95402.0,95377.0,0.00105902]
[1733161211255,0.014,95400.0,95380.0,0.15646779]
[1733161211473,0.00173,95402.0,95381.0,0.10284521]
[1733161211921,0.209641,95401.0,95381.0,0.10284521]
[1733161212162,0.00173,95402.0,95381.0,0.10284521]
[1733161212428,0.04353221,95394.0,95377.0,0.00205902]
[1733161212778,0.00231915,95401.0,95377.0,0.00205902]
[1733161212779,0.25322321,95378.0,95377.0,0.00105902]
[1733161212953,0.25322321,95378.0,95310.0,0.2]
[1733161212954,0.20974,95357.0,95334.0,0.34246779]
[1733161213199,0.014,95357.0,95335.0,0.10284521]
[1733161213425,0.20974,95356.0,95344.0,0.00058865]
[1733161213656,0.164,95358.0,95344.0,0.00058865]
[1733161213882,0.15,95356.0,95344.0,0.00058865]
[1733161214620,0.25,95369.0,95345.0,0.10284521]
[1733161214846,0.014,95373.0,95345.0,0.10284521]
[1733161214847,0.15,95368.0,95345.0,0.10284521]
[1733161215083,0.2951,95378.0,95361.0,0.15646779]
[1733161215084,0.00231988,95371.0,95361.0,0.15646779]
[1733161215332,0.290667,95390.0,95344.0,0.18658865]
[1733161215333,0.014,95387.0,95362.0,0.259313]
[1733161215616,0.014,95385.0,95362.0,0.250313]
[1733161215874,0.014,95393.0,95363.0,0.33346779]
[1733161216103,0.00952163,95382.0,95369.0,0.14746779]
[1733161216340,0.00952163,95382.0,95364.0,0.14647651]
[1733161216341,0.5438698,95401.0,95372.0,0.13846779]
[1733161216641,0.5298698,95401.0,95379.0,0.13846779]
[1733161216943,0.00173,95402.0,95366.0,0.209716]
[1733161216944,0.00173,95402.0,95385.0,0.186]
[1733161217162,0.25,95426.0,95404.0,0.13746779]
[1733161217435,0.06253221,95413.0,95404.0,0.10284521]
[1733161217683,1.84939529,95425.0,95380.0,0.13746779]
[1733161217684,0.014,95409.0,95380.0,0.13746779]
[1733161217937,0.06253221,95410.0,95380.0,0.13746779]
[1733161217938,0.007,95383.0,95380.0,0.13746779]
[1733161218172,0.014,95403.0,95339.0,0.15]
[1733161218173,0.004,95382.0,95381.0,0.10284521]
[1733161218905,0.004,95382.0,95363.0,0.13746779]
[1733161219160,0.15,95397.0,95373.0,0.13746779]
[1733161219410,0.209662,95392.0,95380.0,0.001]
[1733161219631,0.003,95382.0,95380.0,0.10384521]
[1733161220124,0.003,95382.0,95381.0,0.10284521]
[1733161220852,0.15,95401.0,95381.0,0.10284521]
[1733161221073,0.00017708,95401.0,95382.0,0.13446779]
[1733161221289,0.00017708,95401.0,95383.0,0.10284521]
[1733161221728,0.00017708,95401.0,95383.0,0.10084521]
[1733161221950,0.359623,95410.0,95383.0,0.09984521]
[1733161221951,0.014,95403.0,95383.0,0.09984521]
[1733161222186,0.209639,95402.0,95383.0,0.10002229]
[1733161222444,0.15,95410.0,95383.0,0.1234713]
[1733161222445,0.009,95401.0,95383.0,0.1234713]
[1733161222659,0.25,95411.0,95383.0,0.1234713]
[1733161222660,0.15,95406.0,95383.0,0.1234713]
[1733161222920,0.014,95399.0,95383.0,0.00017708]
[1733161223137,0.223646,95399.0,95383.0,0.00017708]
[1733161223367,0.433293,95399.0,95383.0,0.00017708]
[1733161223613,0.014,95399.0,95383.0,0.00017708]
[1733161223855,0.014,95387.0,95383.0,0.00017708]
[1733161224085,0.27533221,95384.0,95383.0,0.00017708]
[1733161224305,0.31264521,95384.0,95383.0,0.00117708]
[1733161224576,0.31264521,95384.0,95383.0,0.00017708]
[1733161224577,0.27533221,95384.0,95383.0,0.00017708]
[1733161225031,0.27533221,95384.0,95383.0,0.00217708]
[1733161225272,0.26133221,95384.0,95383.0,0.00117708]
[1733161225502,0.15,95392.0,95383.0,0.00017708]
[1733161225724,0.009,95384.0,95383.0,0.00117708]
[1733161225948,0.005,95384.0,95383.0,0.00117708]
[1733161226398,0.014,95384.0,95383.0,0.00217708]
[1733161227326,0.009,95384.0,95383.0,0.00117708]
[1733161227553,0.21553221,95392.0,95383.0,0.00017708]
[1733161227769,0.011,95384.0,95383.0,0.00117708]
[1733161227992,0.006,95384.0,95383.0,0.00117708]
[1733161228269,0.5438698,95401.0,95383.0,0.00117708]
[1733161228270,0.5298698,95401.0,95383.0,0.10302229]
[1733161228506,0.009,95384.0,95383.0,0.00017708]
[1733161228741,0.005,95384.0,95383.0,0.10302229]
[1733161228981,0.01,95384.0,95383.0,0.10302229]
[1733161229198,0.005,95384.0,95383.0,0.10302229]
[1733161230367,0.005,95384.0,95383.0,0.13201087]
[1733161230368,0.008,95384.0,95383.0,0.13201087]
[1733161230593,0.008,95384.0,95383.0,0.45247866]
[1733161230817,0.014,95416.0,95388.0,0.13446779]
[1733161231038,0.014,95416.0,95389.0,0.10284521]
[1733161231272,0.209615,95413.0,95390.0,0.04524787]
[1733161231503,0.00231887,95415.0,95383.0,0.00017708]
[1733161231760,0.209678,95384.0,95383.0,0.00017708]
[1733161232202,0.7288431,95384.0,95383.0,0.00017708]
[1733161232419,0.79205542,95384.0,95383.0,0.00017708]
[1733161232854,0.42521921,95380.0,95349.0,0.13446779]
[1733161233393,0.43921921,95380.0,95344.0,0.32046779]
[1733161233596,0.43921921,95380.0,95348.0,0.13446779]
[1733161233809,0.46868618,95380.0,95348.0,0.13446779]
[1733161234257,0.46868618,95380.0,95333.0,77.77759258]
[1733161234258,0.209784,95336.0,95333.0,77.77759258]
[1733161234472,0.36207561,95349.0,95348.0,0.00058865]
[1733161234703,0.15,95349.0,95348.0,0.00058865]
[1733161234943,0.25,95363.0,95348.0,0.00058865]
[1733161235157,0.48393521,95379.0,95348.0,0.00058865]
[1733161235158,0.25,95375.0,95349.0,0.11635085]
[1733161235378,0.25,95375.0,95356.0,0.13446779]
[1733161235633,0.02948667,95374.0,95357.0,0.10284521]
[1733161235846,0.25,95375.0,95357.0,0.10284521]
[1733161236094,0.2097,95374.0,95357.0,0.10284521]
[1733161236564,0.0458,95371.0,95348.0,0.00058865]
[1733161236792,0.209743,95355.0,95349.0,0.10284521]
[1733161237034,0.209734,95359.0,95349.0,0.10284521]
[1733161237514,0.209722,95365.0,95349.0,0.10284521]
[1733161237515,0.15,95362.0,95349.0,0.10284521]
[1733161237949,0.002,95355.0,95349.0,0.10284521]
[1733161239270,0.002,95355.0,95348.0,0.00058865]
[1733161239515,0.209755,95350.0,95348.0,0.00058865]
[1733161239738,0.21207547,95350.0,95348.0,0.00058865]
[1733161239984,0.02954179,95349.0,95348.0,0.00058865]
[1733161240197,0.209755,95350.0,95348.0,0.00058865]
[1733161240414,0.44586046,95349.0,95348.0,0.00058865]
[1733161240645,0.44353999,95349.0,95348.0,0.00058865]
[1733161241744,0.44953999,95349.0,95348.0,0.00058865]
[1733161241961,5.8586034,95349.0,95348.0,0.00058865]
[1733161242173,6.07253589,95349.0,95348.0,0.00058865]
[1733161242624,1.11060004,95349.0,95348.0,0.00058865]
[1733161242840,0.15,95345.0,95333.0,77.77759258]
[1733161243058,0.15,95347.0,95333.0,77.77759258]
[1733161243059,0.4,95338.0,95333.0,77.77759258]
[1733161243548,0.15,95338.0,95333.0,77.77759258]
[1733161244178,0.15,95343.0,95333.0,77.77759258]
[1733161244388,0.004,95338.0,95333.0,77.77759258]
[1733161244609,0.011,95338.0,95333.0,77.77759258]
[1733161244818,0.209784,95336.0,95333.0,77.77759258]
[1733161245253,0.15,95335.0,95333.0,77.77759258]
[1733161245468,0.359788,95334.0,95333.0,77.77759258]
[1733161245930,0.47663321,95334.0,95333.0,77.77759258]
[1733161246138,0.64352422,95334.0,95333.0,77.77759258]
[1733161246358,0.68931806,95334.0,95333.0,77.77759258]
[1733161246568,0.50614268,95334.0,95333.0,77.77759258]
[1733161246783,0.65707489,95334.0,95333.0,77.77759258]
[1733161246999,5.76082295,95334.0,95333.0,77.77759258]
[1733161247228,5.78948884,95334.0,95333.0,77.64949258]
[1733161247472,5.810954,95334.0,95333.0,77.64949258]
[1733161247927,6.018954,95334.0,95333.0,77.64949258]
[1733161248140,6.010954,95334.0,95333.0,77.64949258]
[1733161248361,5.819954,95334.0,95333.0,77.64949258]
[1733161248594,5.79548884,95334.0,95333.0,77.64949258]
[1733161248837,5.79348884,95334.0,95333.0,77.64949258]
[1733161249048,1.00354078,95334.0,95333.0,77.64949258]
[1733161249268,0.96787489,95334.0,95333.0,77.64949258]